fUST/lending_fUST_20240518
["ID","MTS","AMOUNT","RATE_DAILY","PERIOD"]
[327338232,1715995626153,-216.46,0.00010959,2]
[327338233,1715995626173,-180.39,0.00010959,2]
[327338234,1715995626193,-150.32,0.00010959,2]
[327338235,1715995626215,-250.0,0.00012542,2]
[327338236,1715995626234,-1868.06546607,0.00012892,2]
[327338237,1715995632183,-2696.04876591,0.00012892,2]
[327338238,1715995638088,-547.95119073,0.00010959,2]
[327338239,1715995648084,-203.67880927,0.00010959,2]
[327338240,1715995648105,-35.82132243,0.00012892,2]
[327338252,1715995747085,-2127.3781182,0.00012892,2]
[327338253,1715995747107,-11606.32484021,0.00012893,2]
[327338256,1715995761145,-13293.67515979,0.00012893,2]
[327338257,1715995761168,-223.138261,0.00013699,2]
[327338258,1715995761190,-1084.37016178,0.000138,2]
[327338286,1715995832127,-192.40608424,0.000149,2]
[327338287,1715995832136,-157.23496558,0.000149,2]
[327338288,1715995832145,-1084.37016178,0.00014998,2]
[327338289,1715995832155,-213.84088782,0.00014998,2]
[327338290,1715995832164,-159.56712792,0.00014998,2]
[327338291,1715995832173,-1855.72002182,0.00014999,2]
[327338292,1715995832182,-1148.90229176,0.00015,2]
[327338294,1715995832193,-942.40757179,0.00015,2]
[327338296,1715995832202,-80000.0,0.00015,2]
[327338298,1715995832211,-2107.25657902,0.00015,2]
[327338300,1715995832220,-1704.29237534,0.00015,2]
[327338302,1715995832229,-1763.26463365,0.00015,2]
[327338304,1715995832239,-1683.4698518,0.00015,2]
[327338306,1715995832249,-7966.29275223,0.00016,2]
[327338308,1715995832258,-3390.5117,0.00016,2]
[327338310,1715995832267,-9164.91089402,0.00016336,2]
[327338312,1715995832276,-3609.16025053,0.00016338,2]
[327338389,1715995838340,-8817.6778945,0.00016338,2]
[327338391,1715995838350,-2000.0,0.00016338,2]
[327338393,1715995838360,-207.39451134,0.00016435,2]
[327338395,1715995838370,-1483.42322468,0.00016435,2]
[327338397,1715995838380,-155.08932596,0.00016435,2]
[327338400,1715995838390,-380.34473833,0.00016435,2]
[327338402,1715995838399,-212.08344327,0.00016436,2]
[327338403,1715995838409,-5241.23371594,0.00016438,3]
[327338406,1715995838420,-500.0,0.00016438,2]
[327338407,1715995838430,-500.0,0.00016438,2]
[327338410,1715995838442,-500.0,0.00016438,2]
[327338412,1715995838451,-268.35997529,0.00016438,2]
[327338414,1715995838462,-500.0,0.00016438,2]
[327338416,1715995838475,-500.0,0.00016438,2]
[327338418,1715995838484,-500.69953264,0.00016438,2]
[327338419,1715995838494,-500.0,0.00016438,2]
[327338421,1715995838504,-500.0,0.00016438,2]
[327338423,1715995838513,-500.0,0.00016438,2]
[327338425,1715995838522,-500.0,0.00016438,2]
[327338427,1715995838532,-501.78493775,0.00016438,2]
[327338429,1715995838542,-500.0,0.00016438,2]
[327338431,1715995838551,-500.0,0.00016438,2]
[327338433,1715995838562,-500.0,0.00016438,2]
[327338435,1715995838572,-500.0,0.00016438,2]
[327338437,1715995838581,-500.0,0.00016438,2]
[327338439,1715995838591,-500.0,0.00016438,2]
[327338441,1715995838600,-500.0,0.00016438,2]
[327338443,1715995838610,-500.0,0.00016438,2]
[327338445,1715995838619,-500.0,0.00016438,2]
[327338447,1715995838628,-502.35738942,0.00016438,2]
[327338448,1715995838638,-500.0,0.00016438,2]
[327338451,1715995838648,-500.0,0.00016438,2]
[327338453,1715995838657,-500.0,0.00016438,2]
[327338454,1715995838666,-500.0,0.00016438,2]
[327338456,1715995838676,-500.0,0.00016438,2]
[327338458,1715995838686,-500.0,0.00016438,2]
[327338460,1715995838697,-500.0,0.00016438,2]
[327338463,1715995838707,-500.0,0.00016438,2]
[327338464,1715995838716,-500.0,0.00016438,2]
[327338467,1715995838726,-158.21638616,0.00016438,2]
[327338468,1715995838735,-500.0,0.00016438,2]
[327338470,1715995838745,-500.0,0.00016438,2]
[327338472,1715995838754,-500.0,0.00016438,2]
[327338474,1715995838764,-500.0,0.00016438,2]
[327338476,1715995838773,-500.0,0.00016438,2]
[327338478,1715995838782,-500.0,0.00016438,2]
[327338480,1715995838792,-500.89923349,0.00016438,2]
[327338482,1715995838801,-500.0,0.00016438,2]
[327338484,1715995838810,-518.52660179,0.00016438,2]
[327338486,1715995838820,-501.73717795,0.00016438,2]
[327338488,1715995838829,-500.0,0.00016438,2]
[327338490,1715995838839,-500.0,0.00016438,2]
[327338492,1715995838848,-502.33216634,0.00016438,2]
[327338494,1715995838857,-159.66382287,0.00016438,2]
[327338496,1715995838867,-206.75056341,0.00016438,2]
[327338498,1715995838876,-500.0,0.00016438,2]
[327338500,1715995838886,-500.0,0.00016438,2]
[327338502,1715995838895,-500.0,0.00016438,2]
[327338504,1715995838905,-500.0,0.00016438,2]
[327338506,1715995838914,-500.0,0.00016438,2]
[327338508,1715995838924,-500.0,0.00016438,2]
[327338510,1715995838933,-500.0,0.00016438,2]
[327338512,1715995838943,-187.91517803,0.00016438,2]
[327338514,1715995838952,-505.89911409,0.00016438,2]
[327338516,1715995838961,-500.0,0.00016438,2]
[327338518,1715995838970,-500.0,0.00016438,2]
[327338520,1715995838979,-646.86794838,0.00016438,2]
[327338522,1715995838991,-500.0,0.00016438,2]
[327338524,1715995839001,-500.0,0.00016438,2]
[327338526,1715995839010,-500.0,0.00016438,2]
[327338528,1715995839019,-607.66032562,0.00016438,2]
[327338530,1715995839029,-620.44,0.00016438,2]
[327338532,1715995839039,-500.0,0.00016438,2]
[327338534,1715995839048,-500.0,0.00016438,2]
[327338536,1715995839058,-500.0,0.00016438,2]
[327338538,1715995839067,-500.0,0.00016438,2]
[327338540,1715995839077,-500.0,0.00016438,2]
[327338542,1715995839087,-500.0,0.00016438,2]
[327338544,1715995839098,-500.0,0.00016438,2]
[327338545,1715995839107,-500.0,0.00016438,2]
[327338547,1715995839118,-500.0,0.00016438,2]
[327338549,1715995839127,-500.0,0.00016438,2]
[327338551,1715995839137,-500.0,0.00016438,2]
[327338552,1715995839147,-500.0,0.00016438,2]
[327338554,1715995839157,-500.0,0.00016438,2]
[327338556,1715995839167,-500.0,0.00016438,2]
[327338558,1715995839178,-506.54247493,0.00016438,2]
[327338560,1715995839191,-500.0,0.00016438,2]
[327338561,1715995839201,-500.0,0.00016438,2]
[327338563,1715995839211,-500.0,0.00016438,2]
[327338565,1715995839220,-500.0,0.00016438,2]
[327338567,1715995839231,-500.0,0.00016438,2]
[327338569,1715995839242,-500.0,0.00016438,2]
[327338571,1715995839252,-500.0,0.00016438,2]
[327338573,1715995839263,-525.21813447,0.00016438,2]
[327338574,1715995839273,-500.0,0.00016438,2]
[327338576,1715995839283,-500.0,0.00016438,2]
[327338578,1715995839292,-500.0,0.00016438,2]
[327338580,1715995839302,-500.0,0.00016438,2]
[327338582,1715995839312,-500.0,0.00016438,2]
[327338584,1715995839321,-500.0,0.00016438,2]
[327338585,1715995839332,-500.0,0.00016438,2]
[327338587,1715995839342,-500.0,0.00016438,2]
[327338589,1715995839353,-500.0,0.00016438,2]
[327338591,1715995839363,-500.0,0.00016438,2]
[327338593,1715995839374,-500.0,0.00016438,2]
[327338595,1715995839384,-500.0,0.00016438,2]
[327338596,1715995839394,-500.0,0.00016438,2]
[327338598,1715995839405,-500.0,0.00016438,2]
[327338600,1715995839415,-500.0,0.00016438,2]
[327338602,1715995839425,-500.0,0.00016438,2]
[327338604,1715995839436,-500.0,0.00016438,2]
[327338606,1715995839447,-500.0,0.00016438,2]
[327338608,1715995839458,-500.0,0.00016438,2]
[327338610,1715995839474,-500.0,0.00016438,2]
[327338611,1715995839484,-500.0,0.00016438,2]
[327338613,1715995839495,-376.95872008,0.00016438,2]
[327338615,1715995839506,-500.0,0.00016438,2]
[327338617,1715995839518,-500.0,0.00016438,2]
[327338619,1715995839528,-500.0,0.00016438,2]
[327338621,1715995839539,-500.0,0.00016438,2]
[327338623,1715995839551,-500.0,0.00016438,2]
[327338624,1715995839562,-500.0,0.00016438,2]
[327338626,1715995839572,-500.0,0.00016438,2]
[327338628,1715995839583,-500.0,0.00016438,2]
[327338630,1715995839593,-500.0,0.00016438,2]
[327338632,1715995839603,-500.0,0.00016438,2]
[327338633,1715995839613,-500.0,0.00016438,2]
[327338635,1715995839623,-500.0,0.00016438,2]
[327338637,1715995839634,-550.22,0.00016438,2]
[327338639,1715995839645,-500.0,0.00016438,2]
[327338641,1715995839655,-500.0,0.00016438,2]
[327338643,1715995839665,-500.0,0.00016438,2]
[327338645,1715995839675,-500.0,0.00016438,2]
[327338647,1715995839685,-500.0,0.00016438,2]
[327338648,1715995839697,-500.0,0.00016438,2]
[327338650,1715995839707,-500.0,0.00016438,2]
[327338652,1715995839718,-649.95,0.00016438,2]
[327338654,1715995839727,-500.0,0.00016438,2]
[327338656,1715995839737,-500.0,0.00016438,2]
[327338658,1715995839747,-500.0,0.00016438,2]
[327338660,1715995839757,-503.17578765,0.00016438,2]
[327338662,1715995839767,-502.1537635,0.00016438,2]
[327338664,1715995839777,-500.0,0.00016438,2]
[327338665,1715995839787,-500.0,0.00016438,2]
[327338667,1715995839797,-500.0,0.00016438,2]
[327338669,1715995839808,-500.0,0.00016438,2]
[327338671,1715995839818,-500.0,0.00016438,2]
[327338673,1715995839828,-500.0,0.00016438,2]
[327338675,1715995839838,-500.0,0.00016438,2]
[327338677,1715995839848,-500.0,0.00016438,2]
[327338678,1715995839858,-500.0,0.00016438,2]
[327338680,1715995839868,-500.0,0.00016438,2]
[327338682,1715995839878,-500.0,0.00016438,2]
[327338684,1715995839888,-500.0,0.00016438,2]
[327338686,1715995839897,-500.0,0.00016438,2]
[327338687,1715995839907,-500.0,0.00016438,2]
[327338689,1715995839917,-500.0,0.00016438,2]
[327338691,1715995839928,-500.0,0.00016438,2]
[327338693,1715995839939,-500.0,0.00016438,2]
[327338695,1715995839952,-500.0,0.00016438,2]
[327338698,1715995839962,-500.0,0.00016438,2]
[327338701,1715995839972,-500.0,0.00016438,2]
[327338704,1715995839982,-500.0,0.00016438,2]
[327338707,1715995839991,-500.0,0.00016438,2]
[327338709,1715995840000,-500.0,0.00016438,2]
[327338712,1715995840010,-500.0,0.00016438,2]
[327338714,1715995840020,-500.0,0.00016438,2]
[327338717,1715995840029,-500.0,0.00016438,2]
[327338721,1715995840040,-500.0,0.00016438,2]
[327338724,1715995840051,-500.0,0.00016438,2]
[327338727,1715995840060,-500.0,0.00016438,2]
[327338730,1715995840070,-509.11158163,0.00016438,2]
[327338732,1715995840080,-502.51126909,0.00016438,2]
[327338735,1715995840089,-504.6275065,0.00016438,2]
[327338738,1715995840099,-504.91683126,0.00016438,2]
[327338741,1715995840109,-500.0,0.00016438,2]
[327338744,1715995840118,-500.0,0.00016438,2]
[327338746,1715995840128,-500.0,0.00016438,2]
[327338749,1715995840138,-500.0,0.00016438,2]
[327338752,1715995840148,-500.47313397,0.00016438,2]
[327338755,1715995840158,-500.0,0.00016438,2]
[327338758,1715995840168,-500.0,0.00016438,2]
[327338761,1715995840178,-500.0,0.00016438,2]
[327338764,1715995840188,-500.0,0.00016438,2]
[327338767,1715995840201,-500.0,0.00016438,2]
[327338769,1715995840211,-500.0,0.00016438,2]
[327338772,1715995840223,-500.0,0.00016438,2]
[327338775,1715995840233,-3159.79,0.00016438,2]
[327338778,1715995840243,-500.0,0.00016438,2]
[327338781,1715995840253,-500.0,0.00016438,2]
[327338784,1715995840263,-177.83,0.00016438,2]
[327338786,1715995840274,-500.0,0.00016438,2]
[327338789,1715995840284,-516.18,0.00016438,2]
[327338792,1715995840294,-500.0,0.00016438,2]
[327338795,1715995840304,-516.18,0.00016438,2]
[327338798,1715995840315,-516.18,0.00016438,2]
[327338800,1715995840326,-516.18,0.00016438,2]
[327338803,1715995840336,-516.18,0.00016438,2]
[327338806,1715995840346,-516.18,0.00016438,2]
[327338809,1715995840356,-5650.99,0.00016438,2]
[327338812,1715995840366,-500.0,0.00016438,2]
[327338815,1715995840377,-500.0,0.00016438,2]
[327338818,1715995840387,-500.0,0.00016438,2]
[327338822,1715995840397,-500.0,0.00016438,2]
[327338824,1715995840407,-500.0,0.00016438,2]
[327338827,1715995840417,-500.0,0.00016438,2]
[327338829,1715995840427,-1187.16,0.00016438,2]
[327338832,1715995840437,-500.0,0.00016438,2]
[327338834,1715995840448,-500.0,0.00016438,2]
[327338837,1715995840458,-500.0,0.00016438,2]
[327338839,1715995840472,-500.0,0.00016438,2]
[327338843,1715995840482,-500.0,0.00016438,2]
[327338844,1715995840492,-500.0,0.00016438,2]
[327338846,1715995840503,-509.51,0.00016438,2]
[327338849,1715995840513,-500.0,0.00016438,2]
[327338852,1715995840522,-150.15,0.00016438,2]
[327338854,1715995840532,-500.0,0.00016438,2]
[327338857,1715995840542,-500.0,0.00016438,2]
[327338859,1715995840554,-297.42688912,0.00016438,2]
[327338861,1715995840563,-504.57706465,0.00016438,2]
[327338863,1715995840573,-500.0,0.00016438,2]
[327338864,1715995840582,-584.77878106,0.00016438,2]
[327338866,1715995840592,-500.0,0.00016438,2]
[327338868,1715995840601,-642.63361152,0.00016438,2]
[327338869,1715995840611,-500.0,0.00016438,2]
[327338870,1715995840620,-500.0,0.00016438,2]
[327338871,1715995840630,-806.46,0.00016438,2]
[327338872,1715995840639,-500.0,0.00016438,2]
[327338873,1715995840649,-500.47322055,0.00016438,2]
[327338875,1715995840785,-500.0,0.00016438,2]
[327338876,1715995840795,-1000.0,0.00016438,2]
[327338877,1715995840805,-500.0,0.00016438,2]
[327338878,1715995840815,-500.0,0.00016438,2]
[327338879,1715995840824,-500.0,0.00016438,2]
[327338880,1715995840834,-500.0,0.00016438,2]
[327338881,1715995840843,-500.0,0.00016438,2]
[327338882,1715995840852,-500.0,0.00016438,2]
[327338883,1715995840862,-500.0,0.00016438,2]
[327338884,1715995840872,-500.0,0.00016438,2]
[327338885,1715995840881,-500.0,0.00016438,2]
[327338886,1715995840891,-500.0,0.00016438,2]
[327338887,1715995840901,-500.0,0.00016438,2]
[327338888,1715995840911,-500.0,0.00016438,2]
[327338889,1715995840921,-500.0,0.00016438,2]
[327338890,1715995840931,-500.0,0.00016438,2]
[327338891,1715995840940,-500.0,0.00016438,2]
[327338892,1715995840950,-500.0,0.00016438,2]
[327338893,1715995840959,-500.0,0.00016438,2]
[327338894,1715995840968,-500.0,0.00016438,2]
[327338895,1715995840977,-500.0,0.00016438,2]
[327338896,1715995840987,-500.0,0.00016438,2]
[327338897,1715995840996,-500.0,0.00016438,2]
[327338898,1715995841006,-500.0,0.00016438,2]
[327338899,1715995841015,-500.0,0.00016438,2]
[327338900,1715995841024,-500.0,0.00016438,2]
[327338901,1715995841034,-500.0,0.00016438,2]
[327338902,1715995841043,-500.0,0.00016438,2]
[327338903,1715995841052,-500.0,0.00016438,2]
[327338904,1715995841062,-500.0,0.00016438,2]
[327338905,1715995841072,-500.0,0.00016438,2]
[327338906,1715995841081,-500.0,0.00016438,2]
[327338907,1715995841090,-500.0,0.00016438,2]
[327338908,1715995841099,-500.0,0.00016438,2]
[327338909,1715995841108,-500.0,0.00016438,2]
[327338910,1715995841118,-500.0,0.00016438,2]
[327338911,1715995841127,-651.74,0.00016438,2]
[327338912,1715995841136,-500.0,0.00016438,2]
[327338913,1715995841145,-500.0,0.00016438,2]
[327338914,1715995841154,-1057.95,0.00016438,2]
[327338915,1715995841163,-500.0,0.00016438,2]
[327338916,1715995841173,-500.0,0.00016438,2]
[327338917,1715995841182,-500.0,0.00016438,2]
[327338918,1715995841191,-500.0,0.00016438,2]
[327338919,1715995841202,-500.0,0.00016438,2]
[327338920,1715995841212,-5273.74,0.00016438,2]
[327338921,1715995841221,-500.0,0.00016438,2]
[327338922,1715995841230,-500.0,0.00016438,2]
[327338923,1715995841239,-600.94,0.00016438,2]
[327338924,1715995841248,-500.0,0.00016438,2]
[327338925,1715995841257,-500.0,0.00016438,2]
[327338926,1715995841267,-500.0,0.00016438,2]
[327338927,1715995841276,-375.08,0.00016438,2]
[327338928,1715995841286,-500.0,0.00016438,2]
[327338929,1715995841295,-2565.95,0.00016438,2]
[327338930,1715995841305,-500.64,0.00016438,2]
[327338931,1715995841314,-500.0,0.00016438,2]
[327338932,1715995841323,-500.0,0.00016438,2]
[327338933,1715995841333,-500.0,0.00016438,2]
[327338934,1715995841342,-400.0,0.00016438,2]
[327338935,1715995841351,-500.0,0.00016438,2]
[327338936,1715995841361,-500.0,0.00016438,2]
[327338937,1715995841370,-500.0,0.00016438,2]
[327338938,1715995841379,-500.0,0.00016438,2]
[327338939,1715995841389,-500.0,0.00016438,2]
[327338940,1715995841398,-447.75220669,0.00016438,2]
[327338941,1715995841407,-500.0,0.00016438,2]
[327338942,1715995841416,-500.0,0.00016438,2]
[327338943,1715995841426,-500.0,0.00016438,2]
[327338944,1715995841435,-500.0,0.00016438,2]
[327338945,1715995841445,-500.0,0.00016438,2]
[327338946,1715995841455,-500.0,0.00016438,2]
[327338947,1715995841468,-500.0,0.00016438,2]
[327338948,1715995841477,-500.0,0.00016438,2]
[327338949,1715995841486,-500.0,0.00016438,2]
[327338950,1715995841495,-500.0,0.00016438,2]
[327338951,1715995841506,-500.0,0.00016438,2]
[327338952,1715995841515,-500.0,0.00016438,2]
[327338953,1715995841525,-500.0,0.00016438,2]
[327338954,1715995841534,-678.91,0.00016438,2]
[327338955,1715995841544,-500.0,0.00016438,2]
[327338956,1715995841553,-500.0,0.00016438,2]
[327338957,1715995841563,-502.03869105,0.00016438,2]
[327338958,1715995841573,-502.19025893,0.00016438,2]
[327338959,1715995841582,-502.19920621,0.00016438,2]
[327338960,1715995841591,-534.11558995,0.00016438,2]
[327338961,1715995841601,-505.69511588,0.00016438,2]
[327338962,1715995841610,-25480.63,0.00016438,2]
[327338963,1715995841620,-500.0,0.00016438,2]
[327338964,1715995841630,-500.0,0.00016438,2]
[327338965,1715995841639,-2287.36,0.00016438,2]
[327338966,1715995841649,-501.63514118,0.00016438,2]
[327338967,1715995841658,-3422.8,0.00016438,2]
[327338968,1715995841668,-501.67118055,0.00016438,2]
[327338969,1715995841677,-513.55899251,0.00016438,2]
[327338970,1715995841687,-500.0,0.00016438,2]
[327338971,1715995841697,-501.8025543,0.00016438,2]
[327338972,1715995841707,-509.07167693,0.00016438,2]
[327338973,1715995841716,-500.0,0.00016438,2]
[327338974,1715995841726,-4155.15,0.00016438,2]
[327338975,1715995841735,-4222.10020806,0.00016494,2]
[327338976,1715995841745,-302.12545264,0.00016499,2]
[327338977,1715995841754,-500.0,0.00016499,2]
[327338978,1715995841764,-9851.98323156,0.000165,2]
[327338995,1715995847445,-505.32981268,0.00016438,2]
[327338997,1715995847456,-500.0,0.00016438,2]
[327338999,1715995847471,-2851.01676844,0.000165,2]
[327339001,1715995847480,-274.09997115,0.000165,2]
[327339003,1715995847489,-533.1,0.00016539,3]
[327339005,1715995847499,-533.1,0.00016539,2]
[327339007,1715995847510,-150.0,0.00016539,3]
[327339009,1715995847519,-150.0,0.00016539,2]
[327339010,1715995847528,-577.34810022,0.00016544,2]
[327339011,1715995847537,-417.06273246,0.00016577,2]
[327339012,1715995847547,-150.0,0.00016685,2]
[327339013,1715995847556,-154.9224646,0.0001671,2]
[327339014,1715995847566,-516.18,0.00016711,2]
[327339015,1715995847575,-516.18,0.00016711,2]
[327339016,1715995847584,-500.0,0.00016711,2]
[327339017,1715995847593,-500.0,0.00016711,2]
[327339018,1715995847603,-235.03479628,0.00016711,2]
[327339019,1715995847612,-500.0,0.00016711,2]
[327339020,1715995847621,-500.0,0.00016711,2]
[327339021,1715995847630,-500.0,0.00016711,2]
[327339022,1715995847639,-500.0,0.00016712,2]
[327339023,1715995847649,-500.0,0.00016712,2]
[327339024,1715995847658,-500.0,0.00016712,2]
[327339025,1715995847667,-500.0,0.00016712,2]
[327339026,1715995847676,-386.07,0.00016712,2]
[327339027,1715995847695,-500.0,0.00016712,2]
[327339028,1715995847869,-500.0,0.00016712,2]
[327339029,1715995847880,-359.87,0.00016712,2]
[327339030,1715995847890,-200.565084,0.00016712,2]
[327339031,1715995847900,-155.185802,0.00016712,2]
[327339032,1715995847910,-262.16,0.00016712,2]
[327339033,1715995847920,-155.185802,0.00016712,2]
[327339034,1715995847931,-151.0,0.00016712,2]
[327339035,1715995847940,-500.0,0.00016712,2]
[327339036,1715995847949,-151.0,0.00016712,2]
[327339037,1715995847961,-151.0,0.00016712,2]
[327339038,1715995847970,-500.0,0.00016712,2]
[327339039,1715995847979,-500.0,0.00016712,2]
[327339040,1715995847991,-500.0,0.00016712,2]
[327339041,1715995848002,-500.0,0.00016712,2]
[327339042,1715995848011,-151.0,0.00016712,2]
[327339043,1715995848022,-210.17,0.00016712,2]
[327339044,1715995848032,-151.0,0.00016712,2]
[327339045,1715995848041,-151.0,0.00016712,2]
[327339046,1715995848051,-250.24388114,0.00016712,2]
[327339048,1715995984646,722.95748555,0.0002,9]
[327339051,1715996109489,150.0,0.000265,120]
[327339105,1715996238943,152.24827,0.0002,120]
[327339118,1715996476782,500.0,0.00016438,4]
[327339119,1715996731123,-432.29319529,0.00014138,2]
[327339120,1715996836110,-154.82968734,0.0001,2]
[327339121,1715996854088,-235.71459205,0.0001,2]
[327339122,1715996854116,-224.30311814,0.0001,2]
[327339123,1715996945093,-860.32396772,0.0001,2]
[327339124,1715996945119,-164.47420864,0.00010578,2]
[327339125,1715996945140,-1139.71024969,0.00010678,2]
[327339126,1715996950287,-1084.50849612,0.000138,2]
[327339127,1715996950309,-156.05952228,0.00014138,2]
[327339128,1715996950330,-1241.42203819,0.0001415,2]
[327339129,1715996950350,-235.86255121,0.00014238,2]
[327339130,1715996950373,-155.22756452,0.00014238,2]
[327339131,1715996950394,-212.71428935,0.00014238,2]
[327339132,1715996950415,-155.49322303,0.00014238,2]
[327339133,1715996950435,-160.92145313,0.00014238,2]
[327339134,1715996950455,-381.7185769,0.00014239,2]
[327339135,1715996950476,-1489.67676826,0.00014239,2]
[327339136,1715996950498,-208.46783961,0.00014239,2]
[327339137,1715996950519,-24900.0,0.0001424,2]
[327339138,1715996950540,-313.481267,0.0001425,2]
[327339213,1715997033696,-508.40436237,0.000149,2]
[327339214,1715997033706,-1086.24428346,0.000149,2]
[327339215,1715997033715,-959.12336098,0.00014999,2]
[327339216,1715997033724,-1149.07076386,0.00015,2]
[327339217,1715997033733,-942.53705457,0.00015,2]
[327339218,1715997033743,-80000.0,0.00015,2]
[327339219,1715997033753,-2112.7239338,0.00015,2]
[327339220,1715997033762,-2407.7215521,0.00015,2]
[327339221,1715997033772,-216.19200398,0.0001519,2]
[327339222,1715997033782,-3070.35341319,0.00015288,2]
[327339223,1715997033791,-426.3712099,0.00015288,2]
[327339224,1715997033800,-379.8280133,0.00015288,2]
[327339225,1715997033811,-1048.71679056,0.00015288,2]
[327339226,1715997033820,-508.40436237,0.00015328,2]
[327339227,1715997033829,-508.40436237,0.00015756,2]
[327339228,1715997033839,-623.79179162,0.0001592,2]
[327339229,1715997033848,-7967.64444353,0.00016,2]
[327339230,1715997033857,-5019.81368322,0.00016,2]
[327339231,1715997033866,-508.40436237,0.00016184,2]
[327339232,1715997033875,-3346.1683299,0.00016338,2]
[327339260,1715997038459,-955.61945623,0.00016338,2]
[327339262,1715997038468,-2000.0,0.00016338,2]
[327339264,1715997038478,-245.13527441,0.00016435,2]
[327339266,1715997038487,-155.08797204,0.00016435,2]
[327339268,1715997038497,-156.78052077,0.00016435,2]
[327339270,1715997038506,-302.89690554,0.00016436,2]
[327339272,1715997038516,-10729.88589516,0.00016438,3]
[327339274,1715997038525,-502.33557891,0.00016438,2]
[327339276,1715997038534,-423.48114422,0.00016438,2]
[327339278,1715997038544,-501.3410394,0.00016438,2]
[327339280,1715997038553,-502.38609041,0.00016438,2]
[327339282,1715997038563,-510.16360885,0.00016438,2]
[327339285,1715997038573,-367.72858408,0.00016438,2]
[327339287,1715997038582,-500.64414807,0.00016438,2]
[327339288,1715997038591,-501.37380739,0.00016438,2]
[327339290,1715997038600,-502.32976113,0.00016438,2]
[327339292,1715997038610,-500.78406,0.00016438,2]
[327339294,1715997038619,-501.97563731,0.00016438,2]
[327339296,1715997038629,-379.79887098,0.00016438,2]
[327339298,1715997038638,-496.72167351,0.00016438,2]
[327339300,1715997038648,-502.29421865,0.00016438,2]
[327339302,1715997038657,-501.73351118,0.00016438,2]
[327339304,1715997038666,-512.40213468,0.00016438,2]
[327339306,1715997038676,-504.30416154,0.00016438,2]
[327339308,1715997038685,-549.66038859,0.00016438,2]
[327339310,1715997038695,-506.90788683,0.00016438,2]
[327339312,1715997038704,-502.52195074,0.00016438,2]
[327339314,1715997038713,-500.520322,0.00016438,2]
[327339316,1715997038723,-506.46880664,0.00016438,2]
[327339318,1715997038732,-510.01279794,0.00016438,2]
[327339320,1715997038741,-513.83092331,0.00016438,2]
[327339322,1715997038750,-505.81572376,0.00016438,2]
[327339324,1715997038760,-506.01467331,0.00016438,2]
[327339326,1715997038769,-501.73127754,0.00016438,2]
[327339328,1715997038779,-502.23552624,0.00016438,2]
[327339330,1715997038788,-506.66607249,0.00016438,2]
[327339332,1715997038797,-502.56705972,0.00016438,2]
[327339334,1715997038806,-507.01340243,0.00016438,2]
[327339336,1715997038815,-544.10959379,0.00016438,2]
[327339338,1715997038824,-501.92126739,0.00016438,2]
[327339340,1715997038834,-502.33916104,0.00016438,2]
[327339342,1715997038843,-501.29505758,0.00016438,2]
[327339344,1715997038852,-500.65706453,0.00016438,2]
[327339346,1715997038862,-508.86724581,0.00016438,2]
[327339348,1715997038871,-506.42371575,0.00016438,2]
[327339350,1715997038882,-507.16346993,0.00016438,2]